{"text_format":"3","workbook":"xlsx","n_sheets":1,"sheets":["ИНВЕНТАРНЫЙ СПИСОК ОБОРУДОВАНИЯ"],"not_rendered":{"defined_names":5},"read":"whole","date_system":"1900"}

{"sheet":"ИНВЕНТАРНЫЙ СПИСОК ОБОРУДОВАНИЯ","index":0,"n_rows":9,"n_cols":19,"rows_kept":9,"merged":[[0,1,0,5],[0,6,0,9],[0,10,0,12],[0,13,0,14],[2,1,2,6],[2,7,2,18]]}
[null,"ИНВЕНТАРНЫЙ СПИСОК ОБОРУДОВАНИЯ"]
[]
[null,"ФИЗИЧЕСКОЕ СОСТОЯНИЕ",{"$nulls":5},"ЭКОНОМИЧЕСКОЕ СОСТОЯНИЕ"]
[null,"Инвентарный или серийный номер","Характеристика объекта (марка и модель)","Местонахождение","Состояние","Поставщик","Срок службы (осталось лет) ","Первоначальная стоимость","Первоначальный взнос","Дата приобретения или аренды","Срок кредита в годах","Процентная ставка","Ежемесячный платеж","Эксплуатационные расходы за месяц","Общая стоимость за месяц","Предполагаемая стоимость после выплаты кредита","Линейная амортизация за год","Линейная амортизация за месяц","Текущая стоимость"]
[null,123,"Марка и модель","Центральный регион","Хорошо","Местный",5,{"v":900000,"d":"900,000.00 ₽"},{"v":150000,"d":"150,000.00 ₽"},{"$f":"DATE(YEAR(TODAY())-2, 1,1)","v":"2016-01-01"},4,{"v":0.1,"d":"10.00%"},{"$f":"IFERROR(IF(AND(Данные[[#This Row],[Первоначальная стоимость]]>0,Данные[[#This Row],[Первоначальная стоимость]]<>Данные[[#This Row],[Первоначальный взнос]]),-1*PMT(Данные[[#This Row],[Процентная ставка]]/12,Данные[[#This Row],[Срок кредита в годах]]*12,Данные[[#This Row],[Первоначальная стоимость]]-Данные[[#This Row],[Первоначальный взнос]]),0),0)","v":{"v":19021.937576060394,"d":"19,021.94 ₽"}},{"v":6000,"d":"6,000.00 ₽"},{"$f":"IFERROR(Данные[[#This Row],[Эксплуатационные расходы за месяц]]+Данные[[#This Row],[Ежемесячный платеж]],\"\")","v":{"v":25021.937576060394,"d":"25,021.94 ₽"}},{"v":600000,"d":"600,000.00 ₽"},{"$f":"IFERROR(IF(Данные[[#This Row],[Первоначальная стоимость]]>0,SLN(Данные[[#This Row],[Первоначальная стоимость]],Данные[[#This Row],[Предполагаемая стоимость после выплаты кредита]],Данные[[#This Row],[Срок службы (осталось лет) ]]),0),0)","v":{"v":60000,"d":"60,000.00 ₽"}},{"$f":"IFERROR(Данные[[#This Row],[Линейная амортизация за год]]/12,0)","v":{"v":5000,"d":"5,000.00 ₽"}},{"$f":"IFERROR(Данные[[#This Row],[Первоначальная стоимость]]-(Данные[[#This Row],[Линейная амортизация за год]]*((TODAY()-Данные[[#This Row],[Дата приобретения или аренды]])/365)),0)","v":{"v":750410.9589041095,"d":"750,410.96 ₽"}}]
[null,456,"Марка и модель","Центральный регион","Отлично","Местный",3,{"v":150000,"d":"150,000.00 ₽"},{"v":150000,"d":"150,000.00 ₽"},{"$f":"DATE(YEAR(TODAY())-1, 1,1)","v":"2017-01-01"},null,null,{"$f":"IFERROR(IF(AND(Данные[[#This Row],[Первоначальная стоимость]]>0,Данные[[#This Row],[Первоначальная стоимость]]<>Данные[[#This Row],[Первоначальный взнос]]),-1*PMT(Данные[[#This Row],[Процентная ставка]]/12,Данные[[#This Row],[Срок кредита в годах]]*12,Данные[[#This Row],[Первоначальная стоимость]]-Данные[[#This Row],[Первоначальный взнос]]),0),0)","v":{"v":0,"d":"0.00 ₽"}},{"v":600,"d":"600.00 ₽"},{"$f":"IFERROR(Данные[[#This Row],[Эксплуатационные расходы за месяц]]+Данные[[#This Row],[Ежемесячный платеж]],\"\")","v":{"v":600,"d":"600.00 ₽"}},null,{"$f":"IFERROR(IF(Данные[[#This Row],[Первоначальная стоимость]]>0,SLN(Данные[[#This Row],[Первоначальная стоимость]],Данные[[#This Row],[Предполагаемая стоимость после выплаты кредита]],Данные[[#This Row],[Срок службы (осталось лет) ]]),0),0)","v":{"v":50000,"d":"50,000.00 ₽"}},{"$f":"IFERROR(Данные[[#This Row],[Линейная амортизация за год]]/12,0)","v":{"v":4166.666666666667,"d":"4,166.67 ₽"}},{"$f":"IFERROR(Данные[[#This Row],[Первоначальная стоимость]]-(Данные[[#This Row],[Линейная амортизация за год]]*((TODAY()-Данные[[#This Row],[Дата приобретения или аренды]])/365)),0)","v":{"v":75479.45205479451,"d":"75,479.45 ₽"}}]
[null,789,"Марка и модель","Восточная Сибирь","Удовлетворительно","Местный",6,{"v":1500000,"d":"1,500,000.00 ₽"},{"v":600000,"d":"600,000.00 ₽"},{"$f":"TODAY()","v":"2018-06-29"},5,{"v":0.05,"d":"5.00%"},{"$f":"IFERROR(IF(AND(Данные[[#This Row],[Первоначальная стоимость]]>0,Данные[[#This Row],[Первоначальная стоимость]]<>Данные[[#This Row],[Первоначальный взнос]]),-1*PMT(Данные[[#This Row],[Процентная ставка]]/12,Данные[[#This Row],[Срок кредита в годах]]*12,Данные[[#This Row],[Первоначальная стоимость]]-Данные[[#This Row],[Первоначальный взнос]]),0),0)","v":{"v":16984.110279609842,"d":"16,984.11 ₽"}},{"v":1200,"d":"1,200.00 ₽"},{"$f":"IFERROR(Данные[[#This Row],[Эксплуатационные расходы за месяц]]+Данные[[#This Row],[Ежемесячный платеж]],\"\")","v":{"v":18184.110279609842,"d":"18,184.11 ₽"}},{"v":45000,"d":"45,000.00 ₽"},{"$f":"IFERROR(IF(Данные[[#This Row],[Первоначальная стоимость]]>0,SLN(Данные[[#This Row],[Первоначальная стоимость]],Данные[[#This Row],[Предполагаемая стоимость после выплаты кредита]],Данные[[#This Row],[Срок службы (осталось лет) ]]),0),0)","v":{"v":242500,"d":"242,500.00 ₽"}},{"$f":"IFERROR(Данные[[#This Row],[Линейная амортизация за год]]/12,0)","v":{"v":20208.333333333332,"d":"20,208.33 ₽"}},{"$f":"IFERROR(Данные[[#This Row],[Первоначальная стоимость]]-(Данные[[#This Row],[Линейная амортизация за год]]*((TODAY()-Данные[[#This Row],[Дата приобретения или аренды]])/365)),0)","v":{"v":1500000,"d":"1,500,000.00 ₽"}}]
[{"$nulls":12},{"$f":"IFERROR(IF(AND(Данные[[#This Row],[Первоначальная стоимость]]>0,Данные[[#This Row],[Первоначальная стоимость]]<>Данные[[#This Row],[Первоначальный взнос]]),-1*PMT(Данные[[#This Row],[Процентная ставка]]/12,Данные[[#This Row],[Срок кредита в годах]]*12,Данные[[#This Row],[Первоначальная стоимость]]-Данные[[#This Row],[Первоначальный взнос]]),0),0)","v":{"v":0,"d":"0.00 ₽"}},null,{"$f":"IFERROR(Данные[[#This Row],[Эксплуатационные расходы за месяц]]+Данные[[#This Row],[Ежемесячный платеж]],\"\")","v":{"v":0,"d":"0.00 ₽"}},null,{"$f":"IFERROR(IF(Данные[[#This Row],[Первоначальная стоимость]]>0,SLN(Данные[[#This Row],[Первоначальная стоимость]],Данные[[#This Row],[Предполагаемая стоимость после выплаты кредита]],Данные[[#This Row],[Срок службы (осталось лет) ]]),0),0)","v":{"v":0,"d":"0.00 ₽"}},{"$f":"IFERROR(Данные[[#This Row],[Линейная амортизация за год]]/12,0)","v":{"v":0,"d":"0.00 ₽"}},{"$f":"IFERROR(Данные[[#This Row],[Первоначальная стоимость]]-(Данные[[#This Row],[Линейная амортизация за год]]*((TODAY()-Данные[[#This Row],[Дата приобретения или аренды]])/365)),0)","v":{"v":0,"d":"0.00 ₽"}}]
[{"$nulls":12},{"$f":"IFERROR(IF(AND(Данные[[#This Row],[Первоначальная стоимость]]>0,Данные[[#This Row],[Первоначальная стоимость]]<>Данные[[#This Row],[Первоначальный взнос]]),-1*PMT(Данные[[#This Row],[Процентная ставка]]/12,Данные[[#This Row],[Срок кредита в годах]]*12,Данные[[#This Row],[Первоначальная стоимость]]-Данные[[#This Row],[Первоначальный взнос]]),0),0)","v":{"v":0,"d":"0.00 ₽"}},null,{"$f":"IFERROR(Данные[[#This Row],[Эксплуатационные расходы за месяц]]+Данные[[#This Row],[Ежемесячный платеж]],\"\")","v":{"v":0,"d":"0.00 ₽"}},null,{"$f":"IFERROR(IF(Данные[[#This Row],[Первоначальная стоимость]]>0,SLN(Данные[[#This Row],[Первоначальная стоимость]],Данные[[#This Row],[Предполагаемая стоимость после выплаты кредита]],Данные[[#This Row],[Срок службы (осталось лет) ]]),0),0)","v":{"v":0,"d":"0.00 ₽"}},{"$f":"IFERROR(Данные[[#This Row],[Линейная амортизация за год]]/12,0)","v":{"v":0,"d":"0.00 ₽"}},{"$f":"IFERROR(Данные[[#This Row],[Первоначальная стоимость]]-(Данные[[#This Row],[Линейная амортизация за год]]*((TODAY()-Данные[[#This Row],[Дата приобретения или аренды]])/365)),0)","v":{"v":0,"d":"0.00 ₽"}}]